Cogmind - Beta 13 @@@ ROGUE MODE // 2024.04.11 @ 02:16:08 Player: Tenderz Result: Destroyed self with Mini Grenade Launcher Performance ------------- Evolutions (1) 500 Regions Visited (3) 600 Robots Destroyed (30) 150 Value Destroyed (834) 834 Prototype IDs (0) 0 Alien Tech Used (0) 0 Bonus (0) 0 TOTAL SCORE: 2084 Bonus ------- None Cogmind --------- Core Integrity 0/400 Matter 133/300 Energy 260/275 System Corruption 14% Temperature Warning (341) Movement Walking (470) Ox5 Location -9/Storage Parts ------- > --- POWER (1) -------- Deuterium Engine > --- PROPULSION (3) --- Aluminum Leg Aluminum Leg > --- UTILITY (3) ------ Huge Storage Unit Hardened Medium Armor Plating Hardened Medium Armor Plating > --- WEAPON (2) ------- Particle Cannon (fused) Mini Grenade Launcher > --- INVENTORY (25) --- Ion Engine Deuterium Engine Aluminum Leg Aluminum Leg Aluminum Leg Aluminum Leg Aluminum Leg Improved Aluminum Leg Heat Sink Heat Sink Cooling System Small Storage Unit Medium Storage Unit Backup Plating I Particle Cannon Particle Cannon Assault Rifle Shock Bomb Launcher Shock Bomb Launcher Shock Bomb Launcher Mining Laser Peak State ------------ > --- POWER ------------ Deuterium Engine > --- PROPULSION ------- Wheel Compact Wheel Compact Wheel > --- UTILITY ---------- Disposable Heat Sink Huge Storage Unit Hardened Medium Armor Plating > --- WEAPON ----------- Particle Cannon Shock Bomb Launcher > --- INVENTORY -------- Deuterium Engine Deuterium Engine Light Treads Light Treads Aluminum Leg Aluminum Leg Aluminum Leg Aluminum Leg Aluminum Leg Heat Sink Heat Sink Small Storage Unit Medium Storage Unit Terrain Scanner Hardened Medium Armor Plating Hardened Medium Armor Plating Hardened Medium Armor Plating Particle Cannon Particle Cannon Particle Cannon Assault Rifle Shock Bomb Launcher Shock Bomb Launcher Shock Bomb Launcher Mining Laser [Rating: 21] Favorites ----------- Power Ion Engine Engine Ion Engine Propulsion Aluminum Leg Treads Light Treads Leg Aluminum Leg Wheel Compact Wheel Utility Huge Storage Unit Device Terrain Scanner Storage Huge Storage Unit Protection Hardened Medium Armor Plating Weapon Particle Cannon Energy Cannon Particle Cannon Ballistic Gun Assault Rifle Launcher Shock Bomb Launcher Special Weapon Mining Laser Impact Weapon Hammer Build | -11 -10 -9 -9 ------- Run | Yrd Mat Mat Sto Slots Evolved 2 | . . 2 . Power . | . . . . Propulsion 1 | . . 1 . Utility 1 | . . 1 . Weapon . | . . . . Parts Attached 59 | 6 22 17 14 Power 4 | 1 1 2 . Engine 4 | 1 1 2 . Core . | . . . . Reactor . | . . . . Propulsion 22 | 2 8 7 5 Treads 4 | . 2 2 . Leg 12 | 2 2 3 5 Wheel 6 | . 4 2 . Hover . | . . . . Flight . | . . . . Utility 15 | 1 6 4 4 Device 3 | . 2 1 . Storage 5 | 1 4 . . Processor . | . . . . Hackware . | . . . . Protection 7 | . . 3 4 Artifact . | . . . . Weapon 18 | 2 7 4 5 Energy Gun . | . . . . Energy Cannon 6 | . 3 2 1 Ballistic Gun 4 | 2 1 . 1 Ballistic Cannon . | . . . . Launcher 3 | . . 1 2 Special Weapon 4 | . 2 1 1 Impact Weapon 1 | . 1 . . Slashing Weapon . | . . . . Piercing Weapon . | . . . . Special Melee Weapon . | . . . . Unidentified Prototypes . | . . . . Parts Lost 18 | . 4 4 10 Power 2 | . 1 1 . Propulsion 7 | . 1 2 4 Utility 6 | . 1 1 4 Weapon 3 | . 1 . 2 Highest Loss Streak 6 | . 3 4 6 To Critical Strikes . | . . . . Average Slot Usage (%) 95 | . 96 97 91 Engine 12 | . 13 11 11 Leg 16 | . 14 7 29 Wheel 11 | . 10 23 . Device 10 | . 13 17 . Storage 12 | . 14 11 11 Protection 5 | . . 4 17 Energy Cannon 7 | . 7 4 10 Ballistic Gun 9 | . 17 . 2 Launcher 3 | . . 9 5 Special Weapon 2 | . . 7 2 Naked Turns . | . . . . Heaviest Build 115 | 13 94 108 115 Greatest Support 42 | 20 40 42 30 Greatest Overweight (x) 38 | . 9 6 38 Average Overweight (x) 1 | . 1 2 3 Largest Inventory Capacity 25 | 8 25 25 25 Average Capacity 20 | 6 17 25 25 Most Carried 25 | 6 25 25 25 Average Carried 16 | 2 12 24 22 Final Capacity 25 | 8 25 25 25 Final Carried 25 | 6 25 25 21 Class Distribution -------------------- 100% | Mutant Dominant Class ---------------- Mutant | -10/Materials Mutant | -9/Materials Mutant | -9/Storage Resources | -11 -10 -9 -9 ----------- Run | Yrd Mat Mat Sto Matter Collected 804 | 218 241 109 236 Remotely . | . . . . Salvage Created 1237 | . 290 216 731 Parts 60 | . 14 11 35 Haulers Intercepted 2 | . 1 . 1 Recyclers Shooed . | . . . . Parts Field Recycled . | . . . . Retrieved Matter . | . . . . Parts Self-Destructed . | . . . . Prevented . | . . . . Kills | -11 -10 -9 -9 ------- Run | Yrd Mat Mat Sto Combat Hostiles Destroyed 22 | . 6 4 12 Melee 2 | . 2 . . Guns 1 | . 1 . . Cannons 7 | . 3 . 4 AOE 12 | . . 4 8 Classes Destroyed 9 | . 4 1 4 Builder 2 | . . . 2 Hauler 2 | . 1 . 1 Recycler 2 | . 1 . 1 Watcher 2 | . . 1 1 Swarmer 2 | . 2 . . Grunt 17 | . 4 4 9 Brawler 1 | . . . 1 Duelist 1 | . . . 1 Sentry 1 | . . . 1 Best Kill Streak 7 | . 3 4 7 Combat Bots Only 5 | . 3 4 5 Max Kills in Single Turn 3 | . 1 3 3 Gunslinging . | . . . . Exploded 3 | . . 3 2 Melee 1 | . 1 . . Uniques/NPCs Destroyed . | . . . . Combat | -11 -10 -9 -9 -------- Run | Yrd Mat Mat Sto Hostile Shots Fired 195 | . 64 5 126 Missed 36 | . 8 3 25 Damage Taken 3055 | . 490 509 2056 Core 529 | . 109 85 335 Absorbed by Shields . | . . . . Core Remaining (%) 78 | 100 56 . . Volleys Fired 78 | . 31 12 35 Largest 2 | . 2 2 2 Hottest 136 | . 136 104 104 Shots Fired 122 | . 45 16 61 Gun 16 | . 14 . 2 Cannon 58 | . 28 3 27 Launcher 32 | . . 6 26 Special 16 | . 3 7 6 Kinetic 16 | . 14 . 2 Thermal 74 | . 31 10 33 Explosive 7 | . . . 7 Electromagnetic 25 | . . 6 19 Robot Hit Streak 10 | . 5 3 10 Robot Miss Streak 5 | . 3 2 5 Penetration Max . | . . . . Secondary Targets . | . . . . Shots Hit Robots 56 | . 22 3 31 Core Hits 37 | . 10 5 22 Critical Kills . | . . . . Critical Parts Destroyed . | . . . . Critical Strikes . | . . . . Melee Attacks 5 | . 5 . . Impact 5 | . 5 . . Slashing . | . . . . Piercing . | . . . . Sneak Attacks . | . . . . Combat Hostiles . | . . . . Follow-up Attacks . | . . . . Damage Inflicted 1830 | . 400 285 1145 Guns 57 | . 57 . . Cannons 677 | . 287 21 369 Explosions 1040 | . . 264 776 Melee 56 | . 56 . . Ramming . | . . . . Kinetic 57 | . 57 . . Thermal 731 | . 287 21 423 Explosive 136 | . . . 136 Electromagnetic 850 | . . 264 586 Impact 56 | . 56 . . Slashing . | . . . . Piercing . | . . . . Highest Corruption 14 | . . 10 14 Average Corruption 12 | . . 10 12 Corruption Purged . | . . . . Corruption Blocked . | . . . . Effects 28 | . . 7 21 Message Errors 2 | . . 1 1 Matter Fused 7 | . . 1 6 Heat Flow Errors 5 | . . 1 4 Energy Discharges 4 | . . 2 2 Parts Fused 1 | . . . 1 Data Loss (minor) 2 | . . 1 1 Data Loss (major) 1 | . . . 1 Misfires 4 | . . 1 3 Alerts 1 | . . . 1 Weapon Failures 1 | . . . 1 Overload Shots . | . . . . Overflow Damage 36 | . . 10 26 Projectiles . | . . . . Explosions 36 | . . 10 26 Melee . | . . . . Knockbacks . | . . . . Impact . | . . . . Kinetic . | . . . . Secondary . | . . . . Self-Inflicted Damage 617 | . . 190 427 Shots 27 | . . 8 19 Rammed . | . . . . Targets Rammed . | . . . . Kicked . | . . . . Crushed . | . . . . Highest Temperature 478 | . 175 249 478 Average Temperature 138 | . 76 44 183 Received Heat Transfer 564 | . 78 12 474 Effects 5 | . . . 5 Shutdowns 3 | . . . 3 Interference 2 | . . . 2 Siege Activations . | . . . . Robots Corrupted . | . . . . Combat Hostiles . | . . . . Parts Fried 6 | . . 1 5 Impact Corruptions . | . . . . Robots Melted . | . . . . Combat Hostiles . | . . . . Parts Melted 4 | . 3 . 1 Heat Transferred 1371 | . 518 37 816 Parts Sabotaged . | . . . . Parts Stolen . | . . . . Parts Stripped . | . . . . Power Chain Reactions 9 | . . 4 5 Alert | -11 -10 -9 -9 ------- Run | Yrd Mat Mat Sto Peak Influence 268 | . 186 155 268 Initial 27 | . . 27 . Average 80 | . 45 56 191 Maximum Alert Level 1 | . . . 1 Low Security (%) 84 | 100 100 100 33 Level 1 15 | . . . 66 Level 2 . | . . . . Level 3 . | . . . . Level 4 . | . . . . Level 5 . | . . . . High Security . | . . . . Max Security . | . . . . Squads Dispatched 6 | . 3 2 1 Investigation 2 | . 1 1 . Extermination . | . . . . Reinforcement 4 | . 2 1 1 Assault . | . . . . Garrison . | . . . . Intercept . | . . . . Searches Triggered . | . . . . Construction Impeded . | . . . . Haulers Reinforced . | . . . . Active Scanning Responses . | . . . . Cargo Convoy Interrupts . | . . . . Stealth | -11 -10 -9 -9 --------- Run | Yrd Mat Mat Sto Distress Signals 2 | . 1 1 . Communications Jammed . | . . . . Distress Signals . | . . . . Times Spotted 38 | . 14 7 17 Peak Tracking Total 8 | . 4 3 8 Tactical Retreats 3 | . 1 . 2 Traps | -11 -10 -9 -9 ------- Run | Yrd Mat Mat Sto Traps Triggered . | . . . . Indirectly . | . . . . Trap Hack Attempts . | . . . . Triggered . | . . . . Disarmed . | . . . . Reprogrammed . | . . . . Reused . | . . . . Traps Extracted . | . . . . Installed . | . . . . Triggered . | . . . . Machines | -11 -10 -9 -9 ---------- Run | Yrd Mat Mat Sto Machines Disabled 5 | . 1 1 3 Max in Single Turn 2 | . 1 1 2 Machines Repaired . | . . . . Machines Dismantled . | . . . . Machines Sabotaged . | . . . . Overloaded Fab Kills . | . . . . Hacking | -11 -10 -9 -9 --------- Run | Yrd Mat Mat Sto Machines Accessed 5 | . 3 1 1 Terminals 4 | . 2 1 1 Fabricators . | . . . . Repair Stations . | . . . . Recycling Units 1 | . 1 . . Scanalyzers . | . . . . Garrison Access . | . . . . Total Hacks 13 | . 8 2 3 Successful 5 | . 3 1 1 Failed 8 | . 5 1 2 Catastrophic 2 | . 1 . 1 Database Lockouts . | . . . . Manual 7 | . 5 1 1 Terminals 12 | . 7 2 3 Fabricators . | . . . . Repair Stations . | . . . . Recycling Units 1 | . 1 . . Scanalyzers . | . . . . Garrison Access . | . . . . Terminal Hacks 4 | . 2 1 1 Branch Access Points 1 | . . 1 . Hauler Manifests 1 | . 1 . . Zone Layout 2 | . 1 . 1 Fabricator Hacks . | . . . . Repair Station Hacks . | . . . . Recycling Unit Hacks 1 | . 1 . . Report Inventory 1 | . 1 . . Scanalyzer . | . . . . Garrison Access Hacks . | . . . . Unauthorized Hacks . | . . . . Terminals . | . . . . Fabricators . | . . . . Repair Stations . | . . . . Recycling Units . | . . . . Scanalyzers . | . . . . Garrison Access . | . . . . Data Cores Recovered . | . . . . Used . | . . . . Hacking Detections 4 | . 2 1 1 Full Trace Events 1 | . 1 . . Feedback Events . | . . . . Feedback Blocked . | . . . . Robot Schematics Acquired . | . . . . Robots Built . | . . . . Authchips . | . . . . Time . | . . . . Total Robot Build Rating . | . . . . Part Schematics Acquired . | . . . . Parts Built . | . . . . Authchips . | . . . . Time . | . . . . Total Part Build Rating . | . . . . Parts Repaired . | . . . . Time . | . . . . Parts Recycled . | . . . . Recycled Matter . | . . . . Retrieved Matter . | . . . . Retrieved Components . | . . . . Parts Scanalyzed . | . . . . Part Schematics Acquired . | . . . . Parts Damaged . | . . . . Bothacking | -11 -10 -9 -9 ------------ Run | Yrd Mat Mat Sto Used RIF Installer . | . . . . Robots Hacked . | . . . . Non-combat . | . . . . Combat . | . . . . Robot Hacks Applied . | . . . . Relay Couplers Released . | . . . . Fabnet Peak Effective % . | . . . . Robots Rewired . | . . . . Allies Hacked . | . . . . Hacks Repelled . | . . . . Allies | -11 -10 -9 -9 -------- Run | Yrd Mat Mat Sto Total Allies . | . . . . Largest Group . | . . . . Highest-Rated Group . | . . . . Highest-Rated Ally . | . . . . Total Orders . | . . . . Ally Attacks . | . . . . Total Damage . | . . . . Kills . | . . . . Allies Corrupted . | . . . . Allies Melted . | . . . . Intel | -11 -10 -9 -9 ------- Run | Yrd Mat Mat Sto Robot Analysis Total . | . . . . Derelict Logs Recovered . | . . . . Drone Launches . | . . . . Drone Recoveries . | . . . . Exploration | -11 -10 -9 -9 ------------- Run | Yrd Mat Mat Sto Turns Passed 1869 | 64 946 421 438 Spaces Moved 679 | 43 441 115 80 Core 3 | 2 . . 1 Treads 7 | . 7 . . Legs 390 | 41 245 25 79 Wheels 279 | . 189 90 . Hover . | . . . . Flight . | . . . . Fastest Speed 50 | 50 120 123 330 Average Speed 170 | 116 141 172 357 Slowest Speed 1950 | 120 750 330 1950 Overloaded Moves . | . . . . Propulsion Burnouts . | . . . . Robots Hopped . | . . . . Cave-ins Triggered 1 | . . 1 . Exploration Rate (%) 21 | 3 59 9 15 Regions Visited 3 Branch Regions 1 Pre-discovered Areas . | . . . . Known Exits Taken 1 | . . 1 . Unknown Exits Taken 2 | 1 1 . . Scrap Searched . | . . . . Spaces Dug 16 | . 3 7 6 Terrain Destroyed 71 | . 3 18 50 Melee . | . . . . Projectile 17 | . 3 7 7 AOE 54 | . . 11 43 Terrain Rammed . | . . . . Walls Destroyed . | . . . . Machines Disabled . | . . . . Actions | -11 -10 -9 -9 --------- Run | Yrd Mat Mat Sto Total 1225 | 54 698 310 163 Wait 342 | . 175 144 23 Move 676 | 42 440 114 80 Hop . | . . . . Pick Up 48 | 6 20 14 8 Fast Attach 12 | 6 6 . . Attach 18 | . 1 7 10 Detach 1 | . 1 . . Swap 29 | . 15 10 4 Drop 16 | . 4 9 3 Fire 78 | . 31 12 35 Melee 5 | . 5 . . Ram . | . . . . Kick . | . . . . Crush . | . . . . Escape Stasis . | . . . . Rewire . | . . . . Trap . | . . . . Miscellaneous . | . . . . Route ------- -11/Scrapyard -10/Materials (discovered 3 exits: *Mat x2 / [*Min]) -9/Materials (discovered 2 exits: Min / *Sto) -9/Storage History --------- Turn | Location | Event 5 | -11/Scrapyard | Discovered new exit (range 15) 65 | -11/Scrapyard | Entered Materials 184 | -10/Materials | Discovered new exit (range 16) 302 | -10/Materials | Build established: Mutant 472 | -10/Materials | Discovered new exit (range 15) 605 | -10/Materials | Discovered new exit (range 21) 729 | -10/Materials | Lost 3 parts (1p1u1w) 1011 | -10/Materials | Entered another Materials area 1011 | -9/Materials | Evolved 2 slots: Propulsion x1, Utility x1 1063 | -9/Materials | Identified exit to Mines 1063 | -9/Materials | Identified exit to Storage 1305 | -9/Materials | Crushed by falling debris 1305 | -9/Materials | System corruption reached 10% 1365 | -9/Materials | Lost 4 parts (1p2n1u) 1432 | -9/Materials | Entered Storage 1550 | -9/Storage | Core integrity fell below 50% 1634 | -9/Storage | Core integrity fell below 20% 1662 | -9/Storage | Lost 6 parts (3n2u1w) 1870 | -9/Storage | Destroyed self with Mini Grenade Launcher Last Messages --------------- Retrieving Zone 1C layout... Downloaded map data. System corrupted: Heat flow error (+223). System corrupted: Matter fused (-7). System corrupted: Heat flow error (+155). System corrupted: Component data lost. Transfer Shaft disabled. Terminal disabled. Transport Mainframe disabled. G-34 Mercenary destroyed. System corrupted: Particle Cannon failed to cycle. Destroyed Ion Engine. System corrupted: Heat flow error (+131). The unstable cave ceiling collapses. G-34 Mercenary destroyed. The unstable cave ceiling collapses. System corrupted: Matter fused (-5). Aluminum Leg destroyed. Destroyed Aluminum Leg. Map ----- +----------------------------------------------------+ | | | ?????????# ######?????????#???????? | | ########## # #####?????????????? | | =% [% #?????????????? | | * == [ / ###########???? | | % %== * * #???? | | ########/ # #### #???? | | ???????# [ != ## #??# #???? | | ???????# % ####??# #???? | | ???????# #?????#### ######## | | ???????# ##???????# # # | | ???????# #????????# # """ # | | ???????# *=##???????# # "T" # | | ???????# %########## # | | ???????# [!= = ! # | | ???????# [ [ |####### !! # | | ???????#####+####?????# # #;### | | ???????????#%#?#?#????# ?? | | ????????????[#????????# #?? | | ????????????[#???????## #?? | | ????????????*??####### " #?? | | ???????????? ?? "" #?? | | ???????????? ?? ###### % #?? | | ??????????????? #?##### [ # #""#? | | ??????????????? #?# #### # | | ??????????????? #?# @ #???## | | ??????????????? ### # #????? | | ??????????????? # Y ######? | | ???????????????? ;^ ????? | | ????????????? # # ???? | | ????????????#+##??# # ??? | | ??????????????????# #?=r ?? | | ??????????????????# #? #? | | ??????????????????# ########?? #? | | ??????????????????##???????????! #? | | ???????????????????????????????###? | | ??????????????????????????????????? | | ??????????????????????????????????? | | ??????????????????????????????????? | | ??????????????????????????????????? | | ??????????????????????????????????? | | ??????????????????????????????????? | | ??????????????????????????????????? | | ??????????????????????????????????? | | ??????????????????????????????????? | | ??????????????????????????????????? | | ??????????????????????????????????? | | ??????????????????????????????????? | | ??????????????????????????????????? | | ??????????????????????????????????? | +----------------------------------------------------+ Best States ------------- Heat Dissipation 28 Coolant Potential 50 Energy Generation 14 Energy Capacity 275 Matter Stores 300 Matter Capacity 300 Sight Range 16 Terrain Scan Range 14 Terrain Scan Density 10 Armor Coverage 450 Evasion (%) 55 Recoil Reduction 2 Item Schematics ----------------- None Robot Schematics ------------------ None Fabricated ------------ Nothing Alien Tech Used ----------------- None Achievements -------------- Loot Pinata Unlikely Earthworm Challenges ------------ None Game ------ Seed ProcessingAssembledLeg Manual? 0 Play Time 00:24:45 Cumulative 6.6 hours Start 2024.04.11 @ 01:50:35 End 2024.04.11 @ 02:16:08 Sessions 1 Manual Loads 0 Difficulty Rogue Special Mode None Game No. 10 Rogue 10 Adventurer 0 Explorer 0 Win Type - Total 0 Types 0/0/0/0/0/0/0/0/0 Lore% 5 Gallery% 10 Achievement% 10 Wizard Run 0 Options --------- Layout 1 ASCII 0 Keyboard 0 Movement Arrows Keybinds 0 Fullscreen 1 Font 32/SmallcapsGlow Map View 50x35 Zoom Use 0% Tactical HUD 0 Map Filters NONE Filters NONE Steam 1 RUN: aef59cf1-4e06-44c8-a47e-7f16ada776c6